bitfinex-derivatives/quotes_SOLF0:USTF0_20260302
["timestamp","ask_amount","ask_price","bid_price","bid_amount"]
[1772448300800,3.64877435,83.91,83.851,8.59348764]
[1772448301290,3.64877435,83.9,83.851,8.59348764]
[1772448301803,3.64877435,83.88,83.838,8.59348764]
[1772448302198,3.64877435,83.87,83.825,8.58644197]
[1772448303798,2.07546832,83.893,83.811,8.59691208]
[1772448303799,3.64877435,83.85,83.811,8.59691208]
[1772448304102,2.07546832,83.893,83.811,8.59691208]
[1772448304302,3.64877435,83.85,83.811,8.59691208]
[1772448304497,9.75856492,83.87,83.811,8.59691208]
[1772448305300,10.731,83.868,83.811,8.59691208]
[1772448307204,10.731,83.868,83.802,10.74]
[1772448307403,10.731,83.868,83.806,8.59442041]
[1772448308705,9.75856492,83.87,83.806,8.59442041]
[1772448309805,10.731,83.869,83.806,8.59442041]
[1772448310907,9.75856492,83.87,83.806,8.59442041]
[1772448311112,10.732,83.861,83.806,8.59442041]
[1772448311808,10.733,83.853,83.806,8.59442041]
[1772448312013,9.75856492,83.87,83.806,8.59442041]
[1772448312310,9.75856492,83.85,83.793,8.59880757]
[1772448313212,10.735,83.837,83.793,8.59880757]
[1772448314216,9.75856492,83.87,83.793,8.59880757]
[1772448314416,9.75856492,83.87,83.799,8.58673863]
[1772448315221,10.733,83.857,83.799,8.58673863]
[1772448315422,10.733,83.857,83.804,8.58673863]
[1772448316113,10.733,83.857,83.804,11.11336531]
[1772448316318,10.733,83.857,83.805,8.58906047]
[1772448317814,10.734,83.849,83.805,8.58906047]
[1772448319313,10.735,83.841,83.802,11.11336531]
[1772448319516,10.735,83.841,83.79,8.57937308]
[1772448319517,9.75856492,83.84,83.792,11.11336531]
[1772448319716,9.75856492,83.84,83.79,8.57937308]
[1772448320324,10.736,83.835,83.79,8.57937308]
[1772448322022,9.75856492,83.85,83.79,8.57937308]
[1772448322023,10.735,83.844,83.79,8.57937308]
[1772448322424,9.75856492,83.85,83.79,8.57937308]
[1772448322826,10.735,83.837,83.79,8.57937308]
[1772448323926,9.75856492,83.85,83.79,8.57937308]
[1772448323927,10.736,83.83,83.79,8.57937308]
[1772448324524,14.38165175,83.83,83.79,8.57937308]
[1772448326130,3.64565175,83.82,83.78,11.11336531]
[1772448326332,3.64565175,83.81,83.766,8.61175015]
[1772448327728,10.739,83.808,83.766,8.61175015]
[1772448327930,3.64565175,83.8,83.766,8.61175015]
[1772448328325,10.739,83.808,83.766,8.61175015]
[1772448330427,10.74,83.801,83.766,8.61175015]
[1772448331531,9.76936898,83.81,83.743,8.60287739]
[1772448332724,9.76936898,83.79,83.743,8.60287739]
[1772448332923,10.744,83.774,83.743,8.60287739]
[1772448336341,10.742,83.783,83.743,8.60287739]
[1772448341943,10.743,83.776,83.743,8.60287739]
[1772448342538,10.742,83.786,83.743,8.60287739]
[1772448343143,10.743,83.779,83.743,8.60287739]
[1772448344743,10.743,83.779,83.731,41.0106165]
[1772448345251,10.744,83.771,83.731,41.0106165]
[1772448346948,10.744,83.771,83.731,8.55393882]
[1772448347351,10.745,83.764,83.731,8.55393882]
[1772448348643,9.76936898,83.77,83.719,460.33402786]
[1772448348842,9.76936898,83.77,83.696,8.55081283]
[1772448350353,10.747,83.747,83.696,8.55081283]
[1772448350650,10.747,83.747,83.701,8.5503398]
[1772448354258,3.65257192,83.76,83.701,8.5503398]
[1772448354957,10.747,83.749,83.701,8.5503398]
[1772448358658,10.748,83.742,83.701,8.5503398]
[1772448359153,10.749,83.734,83.701,8.5503398]
[1772448359452,10.749,83.734,83.681,10.755]
[1772448359453,3.65257192,83.73,83.69,8.52461636]
[1772448359649,3.65257192,83.72,83.678,8.52469122]
[1772448359855,3.65257192,83.71,83.678,8.52469122]
[1772448360055,3.65257192,83.72,83.678,8.52469122]
[1772448360460,10.753,83.703,83.66,3.65257192]
[1772448360954,3.65257192,83.71,83.66,3.65257192]
[1772448361558,3.65257192,83.71,83.653,289.29097723]
[1772448361762,3.65257192,83.7,83.653,289.29097723]
[1772448362359,3.65257192,83.7,83.654,4.2773346]
[1772448362756,10.753,83.699,83.654,4.2773346]
[1772448362960,21.495,83.745,83.654,4.2773346]
[1772448363259,3.65257192,83.71,83.661,4.2773346]
[1772448363760,3.65257192,83.73,83.671,4.26150584]
[1772448363964,3.65257192,83.73,83.681,4.26150584]
[1772448364463,10.75,83.724,83.691,4.26150584]
[1772448365952,10.748,83.736,83.691,4.26150584]
[1772448366156,10.748,83.736,83.701,4.28388271]
[1772448366861,10.749,83.729,83.701,4.28388271]
[1772448367062,3.62624204,83.745,83.701,0.00088271]
[1772448368159,10.749,83.733,83.701,0.00088271]
[1772448368959,3.62624204,83.745,83.701,0.00088271]
[1772448369155,3.62624204,83.745,83.681,3.73588743]
[1772448369658,3.67850723,83.717,83.661,3.73588743]
[1772448371362,10.752,83.708,83.661,3.73588743]
[1772448372665,10.75,83.721,83.661,3.73588743]
[1772448374664,10.75,83.721,83.663,3.91248854]
[1772448375260,10.75,83.721,83.665,3.91248854]
[1772448376064,3.69337331,83.73,83.667,3.91248854]
[1772448376563,3.69337331,83.73,83.662,11.11336531]
[1772448376564,3.69337331,83.73,83.682,3.91248854]
[1772448377862,3.69337331,83.73,83.683,10.755]
[1772448378068,3.69337331,83.73,83.684,3.76826597]
[1772448378572,3.60678795,83.749,83.686,3.76826597]
[1772448380370,3.60678795,83.749,83.697,10.753]
[1772448380967,3.60678795,83.749,83.703,10.752]
[1772448381176,3.60678795,83.749,83.703,3.76826597]
[1772448382069,3.60678795,83.749,83.712,10.751]
[1772448382967,3.60678795,83.749,83.705,3.76826597]
[1772448384070,3.60678795,83.749,83.706,10.752]
[1772448385071,3.60678795,83.788,83.711,3.76826597]
[1772448385274,166.937,83.87,83.691,167.293]
[1772448385275,3.60678795,83.808,83.741,3.76826597]
[1772448386477,181.68826245,83.875,83.715,14.71471351]
[1772448386478,3.60678795,83.822,83.761,3.76826597]
[1772448388575,3.60678795,83.835,83.79,3.64536389]
[1772448390175,3.60678795,83.835,83.79,7.41362986]
[1772448390370,3.60678795,83.819,83.77,3.64536389]
[1772448391275,3.60678795,83.819,83.763,3.76826597]
[1772448391472,3.60678795,83.809,83.76,3.64536389]
[1772448399588,3.60678795,83.823,83.781,3.76826597]
[1772448402585,10.736,83.83,83.79,3.64536389]
[1772448404089,3.60678795,83.836,83.791,3.76826597]
[1772448404296,3.60678795,83.836,83.8,3.64536389]
[1772448405388,3.60678795,83.836,83.791,3.76826597]
[1772448405590,3.60678795,83.829,83.78,3.64536389]
[1772448405789,3.60678795,83.829,83.777,3.76826597]
[1772448406989,3.60678795,83.829,83.78,3.64536389]
[1772448407194,3.6677534,83.825,83.78,3.64536389]
[1772448408390,10.737,83.821,83.78,3.64536389]
[1772448412799,10.737,83.821,83.777,3.76826597]
[1772448412800,3.6677534,83.813,83.777,3.76826597]
[1772448413399,3.6677534,83.813,83.78,3.64536389]
[1772448413591,10.737,83.822,83.781,3.81310974]
[1772448413791,3.6677534,83.829,83.781,3.81310974]
[1772448413995,3.6677534,83.829,83.791,3.81310974]
[1772448417600,10.735,83.84,83.791,3.81310974]
[1772448417899,14.4027534,83.84,83.791,3.81310974]
[1772448419099,3.6677534,83.839,83.791,3.81310974]
[1772448422906,10.735,83.842,83.8,7.45847363]
[1772448423407,10.735,83.842,83.801,3.81310974]
[1772448426613,10.735,83.84,83.801,3.81310974]
[1772448427314,14.4027534,83.84,83.801,3.81310974]
[1772448427713,10.733,83.855,83.811,3.81310974]
[1772448427915,166.798,83.94,83.768,14.71471351]
[1772448427916,166.793,83.943,83.768,14.71471351]
[1772448427917,3.64536389,83.9,83.851,3.81310974]
[1772448428109,3.6677534,83.901,83.851,3.81310974]
[1772448428617,3.6677534,83.894,83.851,3.81310974]
[1772448429219,3.6677534,83.907,83.87,3.64536389]
[1772448430514,3.6677534,83.907,83.861,3.81310974]
[1772448431418,2.07469498,83.933,83.861,3.81310974]
[1772448431419,14.3947534,83.906,83.861,3.81310974]
[1772448432612,3.6677534,83.906,83.861,3.81310974]
[1772448434222,3.64536389,83.9,83.861,3.81310974]
[1772448434724,3.6677534,83.906,83.861,3.81310974]
[1772448436628,3.76244597,83.899,83.861,3.81310974]
[1772448437222,3.76244597,83.899,83.847,3.90721076]
[1772448439627,3.76244597,83.899,83.845,10.734]
[1772448439628,3.76244597,83.899,83.851,3.90721076]
[1772448439928,3.6787857,83.897,83.851,3.90721076]
[1772448441729,3.6787857,83.879,83.835,3.90721076]
[1772448441926,3.6787857,83.869,83.821,3.90721076]
[1772448442932,11.93,83.93,83.802,456.81689906]
[1772448442933,3.6787857,83.896,83.831,3.90721076]
[1772448443137,3.6787857,83.896,83.851,3.90721076]
[1772448444030,10.727,83.907,83.851,3.90721076]
[1772448444734,14.4057857,83.907,83.851,3.90721076]
[1772448444933,10.727,83.904,83.851,3.90721076]
[1772448446835,3.6787857,83.897,83.851,3.90721076]
[1772448449041,3.6387168,83.89,83.851,3.90721076]
[1772448449241,3.6787857,83.889,83.851,3.90721076]
[1772448450540,3.6787857,83.889,83.841,3.90721076]
[1772448451140,3.6787857,83.889,83.844,3.90721076]
[1772448453143,3.6787857,83.888,83.844,3.90721076]
[1772448453947,3.6787857,83.879,83.844,3.90721076]
[1772448454146,3.6787857,83.879,83.831,3.90721076]
[1772448455145,10.73,83.878,83.831,3.90721076]
[1772448455647,3.6787857,83.892,83.85,7.54592756]
[1772448455848,3.6787857,83.892,83.851,3.90721076]
[1772448460749,3.58061353,83.879,83.838,3.90721076]
[1772448460951,3.58061353,83.879,83.83,3.6387168]
[1772448461454,3.58061353,83.879,83.83,7.54592756]
[1772448462051,3.58061353,83.879,83.831,3.90721076]
[1772448462749,3.58061353,83.879,83.834,3.90721076]
[1772448469153,3.58061353,83.879,83.834,14.91546161]
[1772448469655,3.58061353,83.879,83.835,3.56809783]
[1772448470259,3.58061353,83.879,83.836,11.00825085]
[1772448470459,3.58061353,83.879,83.835,3.56809783]
[1772448471354,3.58061353,83.879,83.837,3.56809783]
[1772448472257,3.58061353,83.879,83.84,11.00825085]
[1772448474160,3.58061353,83.879,83.84,14.57634868]
[1772448474364,3.58061353,83.879,83.84,3.56809783]
[1772448475062,3.58061353,83.879,83.84,14.57634868]
[1772448475463,3.58061353,83.879,83.84,3.56809783]
[1772448482177,10.729,83.884,83.84,3.56809783]
[1772448483074,10.729,83.884,83.828,14.69140778]
[1772448483075,3.569737,83.901,83.851,3.67324104]
[1772448483274,3.569737,83.901,83.86,3.67324104]
[1772448483470,3.569737,83.901,83.861,3.67324104]
[1772448484468,3.6387168,83.9,83.851,7.61227196]
[1772448484869,3.6387168,83.91,83.851,7.61227196]
[1772448485579,3.6387168,83.92,83.871,7.61227196]
[1772448485976,35.14004898,83.955,83.881,7.54864763]
[1772448485977,3.6387168,83.94,83.881,7.54864763]
[1772448487171,14.3627168,83.93,83.881,7.54864763]
[1772448489379,10.724,83.93,83.881,7.54864763]
[1772448490671,10.724,83.922,83.881,7.54864763]
[1772448492374,10.726,83.912,83.87,7.58103884]
[1772448492575,3.6387168,83.9,83.857,7.58103884]
[1772448497274,3.6387168,83.91,83.861,7.57022257]
[1772448497483,3.6387168,83.92,83.861,7.57022257]
[1772448497671,3.6387168,83.91,83.861,7.57022257]
[1772448499084,3.6387168,83.91,83.863,7.57047904]
[1772448500889,3.6387168,83.92,83.871,7.57048151]
[1772448501082,14.3627168,83.93,83.871,7.57048151]
[1772448501481,14.3627168,83.93,83.881,7.57048151]
[1772448502685,3.6387168,83.92,83.881,7.57048151]
[1772448502986,35.14004898,83.955,83.87,3.6387168]
[1772448502987,3.6387168,83.91,83.87,11.21056973]
[1772448503285,3.6387168,83.91,83.871,7.57185293]
[1772448504579,10.725,83.919,83.871,7.57185293]
[1772448504779,10.724,83.928,83.881,7.57321849]
[1772448507291,10.725,83.921,83.881,7.57321849]
[1772448507491,3.6387168,83.92,83.881,7.57321849]
[1772448508585,3.63703242,83.92,83.881,7.57321849]
[1772448509887,3.63703242,83.93,83.881,7.57321849]
[1772448511990,3.63703242,83.93,83.883,7.58040638]
[1772448513297,3.63703242,83.93,83.886,7.58040638]
[1772448515206,10.724,83.928,83.886,7.58040638]
[1772448516194,3.63703242,83.93,83.888,7.58340719]
[1772448517697,3.63703242,83.93,83.889,10.729]
[1772448518005,3.63703242,83.93,83.89,7.58141243]
[1772448521705,3.63703242,83.93,83.892,7.57904612]
[1772448521900,10.722,83.944,83.892,7.57904612]
[1772448522106,3.63703242,83.95,83.892,7.57904612]
[1772448522697,3.63703242,83.95,83.893,7.6535832]
[1772448523306,3.63703242,83.94,83.893,7.6535832]
[1772448525308,3.63703242,83.93,83.893,7.6535832]
[1772448527004,3.63703242,83.93,83.881,7.654163]
[1772448527208,3.63703242,83.91,83.868,7.654163]
[1772448531611,10.726,83.907,83.868,7.654163]
[1772448531814,3.63703242,83.9,83.868,7.654163]
[1772448532614,10.726,83.907,83.868,7.654163]
[1772448538721,3.63703242,83.92,83.872,7.62778389]
[1772448538914,3.63703242,83.91,83.872,7.62778389]
[1772448540517,3.63703242,83.92,83.872,7.62778389]
[1772448540717,3.63703242,83.94,83.881,7.63080637]
[1772448541714,3.63703242,83.95,83.901,7.62878078]
[1772448542022,3.63703242,83.96,83.901,7.62878078]
[1772448542419,3.63703242,83.96,83.905,7.62878078]
[1772448543124,3.63703242,83.95,83.905,7.62878078]
[1772448543327,3.63703242,83.95,83.91,7.62878078]
[1772448543924,3.63703242,83.94,83.898,7.58151615]
[1772448544526,3.63703242,83.95,83.901,7.58151615]
[1772448544726,3.63703242,83.95,83.905,7.58151615]
[1772448546024,10.721,83.949,83.905,7.58151615]
[1772448547830,3.63703242,83.94,83.893,11.10914569]
[1772448548128,3.63703242,83.92,83.89,7.57086124]
[1772448549732,3.63703242,83.92,83.877,18.68000693]
[1772448550032,3.63703242,83.92,83.878,7.53538888]
[1772448550330,3.63703242,83.93,83.881,7.53538888]
[1772448551730,3.63703242,83.93,83.883,7.5382871]
[1772448552436,3.63703242,83.92,83.883,7.5382871]
[1772448553638,10.724,83.928,83.883,7.5382871]
[1772448558642,3.63703242,83.92,83.883,7.5382871]
[1772448560937,10.725,83.919,83.883,7.5382871]
[1772448563234,3.63703242,83.91,83.869,7.52704357]
[1772448564341,10.727,83.902,83.869,7.52704357]
[1772448567945,14.36303242,83.91,83.869,7.52704357]
[1772448568543,14.36451197,83.91,83.869,7.52704357]
[1772448570251,10.727,83.904,83.869,7.52704357]
[1772448571547,14.72787638,83.949,83.858,456.6081496]
[1772448571548,14.36751197,83.89,83.858,456.6081496]
[1772448571748,3.63851197,83.89,83.858,456.6081496]
[1772448572143,3.63851197,83.9,83.859,7.5528259]
[1772448573248,10.727,83.899,83.859,7.5528259]
[1772448573646,3.63851197,83.9,83.859,7.5528259]
[1772448574248,3.63851197,83.91,83.861,7.57194086]
[1772448574443,26.65787638,83.949,83.861,7.57194086]
[1772448574444,10.725,83.916,83.861,7.57194086]
[1772448575146,10.725,83.916,83.871,7.57194086]
[1772448578551,10.726,83.909,83.871,7.57194086]
[1772448580057,10.725,83.917,83.871,7.57194086]
[1772448582659,10.723,83.934,83.891,7.60282805]
[1772448582857,3.63851197,83.95,83.901,7.60282805]
[1772448583058,3.63851197,83.96,83.911,7.60282805]
[1772448583358,10.72,83.958,83.911,7.60282805]
[1772448583758,3.63851197,83.96,83.911,7.60282805]
[1772448583954,10.721,83.95,83.911,7.60282805]
[1772448585260,3.63851197,83.94,83.899,7.63213352]
[1772448586363,10.723,83.934,83.899,7.63213352]
[1772448586956,3.63851197,83.96,83.911,7.61946289]
[1772448588265,10.721,83.946,83.911,7.61946289]
[1772448589867,3.63851197,83.95,83.911,7.61946289]
[1772448589868,10.722,83.939,83.911,7.61946289]
[1772448590368,10.722,83.939,83.9,3.63851197]
[1772448590566,10.722,83.939,83.899,7.61050925]
[1772448593371,10.722,83.939,83.901,7.60866735]
[1772448595974,10.723,83.932,83.901,7.60866735]
[1772448597278,10.724,83.925,83.895,7.60879491]
[1772448597481,3.63851197,83.93,83.884,7.60879491]
[1772448598374,3.63851197,83.94,83.884,7.60879491]
[1772448598577,10.725,83.92,83.884,7.60879491]
[1772448598774,3.63851197,83.93,83.884,7.60879491]
[1772448600076,3.63851197,83.92,83.873,18.69886116]
[1772448600278,3.63851197,83.92,83.874,7.61027167]
[1772448600677,3.63851197,83.92,83.858,456.6081496]
[1772448600678,3.63851197,83.93,83.881,7.61027167]
[1772448600877,3.63851197,83.95,83.901,7.61027167]
[1772448602280,3.63851197,83.94,83.901,7.61027167]
[1772448602579,10.723,83.933,83.901,7.61027167]
[1772448602780,21.70910464,83.959,83.873,10.731]
[1772448602781,3.63851197,83.93,83.877,7.62025488]
[1772448603482,3.63851197,83.93,83.88,11.25876685]
[1772448604184,10.724,83.926,83.88,11.25876685]
[1772448604480,10.724,83.926,83.881,7.62128343]
[1772448606884,10.725,83.919,83.881,7.62128343]
[1772448607487,10.726,83.912,83.881,7.62128343]
[1772448607886,3.63851197,83.93,83.881,7.62128343]
[1772448608088,3.63851197,83.92,83.871,7.62559268]
[1772448608283,3.63851197,83.92,83.862,11.0910542]
[1772448608284,10.727,83.905,83.862,11.0910542]
[1772448608483,3.63851197,83.91,83.86,3.63851197]
[1772448608684,3.63851197,83.91,83.86,11.26410465]
[1772448608882,10.728,83.898,83.86,11.26410465]
[1772448609587,10.729,83.891,83.86,7.62559268]
[1772448610093,10.729,83.891,83.858,456.6081496]
[1772448610094,3.63851197,83.89,83.831,7.62245806]
[1772448610291,3.63851197,83.9,83.851,7.62245806]
[1772448610982,3.63851197,83.91,83.851,7.62245806]
[1772448611288,10.728,83.896,83.851,7.62245806]
[1772448614988,3.63851197,83.9,83.85,3.63851197]
[1772448615289,3.63851197,83.89,83.84,3.63851197]
[1772448615595,10.729,83.888,83.84,3.63851197]
[1772448616090,3.63851197,83.89,83.84,3.63851197]
[1772448616393,10.728,83.896,83.84,3.63851197]
[1772448616595,10.728,83.896,83.85,3.63851197]
[1772448616994,10.728,83.896,83.851,3.91093595]
[1772448618698,3.74461426,83.899,83.851,3.91093595]
[1772448618898,3.62087179,83.889,83.839,3.76118138]
[1772448619094,3.62087179,83.889,83.841,3.76118138]
[1772448624202,3.62087179,83.889,83.843,3.76118138]
[1772448624602,3.62087179,83.889,83.853,10.733]
[1772448624802,3.62087179,83.899,83.854,3.76118138]
[1772448625104,3.62087179,83.899,83.861,3.76118138]
[1772448625404,3.62087179,83.909,83.861,3.76118138]
[1772448625898,3.62087179,83.909,83.863,3.76118138]
[1772448633210,3.62087179,83.907,83.863,3.76118138]
[1772448634808,3.62087179,83.904,83.863,3.76118138]
[1772448635710,3.62087179,83.879,83.834,3.76118138]
[1772448637203,3.63884201,83.89,83.841,3.76118138]
[1772448637403,3.62087179,83.89,83.851,3.76118138]
[1772448638608,14.34987179,83.89,83.851,3.76118138]
[1772448639217,3.62087179,83.889,83.851,3.76118138]
[1772448640313,10.729,83.887,83.851,3.76118138]
[1772448641416,3.62087179,83.879,83.825,18.45258916]
[1772448641616,3.62087179,83.869,83.825,3.76118138]
[1772448642312,3.62087179,83.879,83.831,3.76118138]
[1772448642908,3.62087179,83.879,83.811,14.69140778]
[1772448643116,3.62087179,83.849,83.801,14.69140778]
[1772448643305,3.62087179,83.849,83.801,3.76118138]
[1772448644311,10.735,83.842,83.801,3.76118138]
[1772448645014,10.735,83.837,83.801,3.76118138]
[1772448646017,10.735,83.837,83.762,22.04171405]
[1772448646018,10.736,83.829,83.797,3.76118138]
[1772448647322,10.736,83.829,83.781,3.83403423]
[1772448648520,3.62087179,83.837,83.791,3.83403423]
[1772448652927,3.73285088,83.849,83.801,3.83403423]
[1772448654526,22.4320875,83.862,83.811,3.83403423]
[1772448655521,3.73285088,83.861,83.811,3.83403423]
[1772448657832,3.73285088,83.859,83.811,3.83403423]
[1772448658426,3.73285088,83.857,83.811,3.83403423]
[1772448659234,3.73285088,83.854,83.811,3.83403423]
[1772448660333,10.734,83.852,83.811,3.83403423]
[1772448660531,3.63884201,83.85,83.811,3.83403423]
[1772448660837,3.73285088,83.835,83.79,3.63884201]
[1772448661027,3.73285088,83.835,83.789,3.83403423]
[1772448661028,7.37169289,83.83,83.789,3.83403423]
[1772448661530,3.73285088,83.829,83.789,3.83403423]
[1772448662334,14.46885088,83.829,83.789,3.83403423]
[1772448662534,3.73285088,83.828,83.789,3.83403423]
[1772448663334,3.73285088,83.826,83.78,3.63884201]
[1772448663530,3.73285088,83.819,83.777,3.83403423]
[1772448665335,10.738,83.818,83.777,3.83403423]
[1772448665535,3.73285088,83.819,83.777,3.83403423]
[1772448666438,10.738,83.818,83.777,3.83403423]
[1772448667637,3.73285088,83.819,83.777,3.83403423]
[1772448668432,3.73285088,83.818,83.77,3.63884201]
[1772448668636,3.73285088,83.818,83.771,3.83403423]
[1772448669241,10.738,83.817,83.771,3.83403423]
[1772448671043,3.73285088,83.818,83.771,3.83403423]
[1772448671936,3.73285088,83.809,83.752,3.83403423]
[1772448672143,3.73285088,83.799,83.752,3.83403423]
[1772448672539,3.73285088,83.789,83.74,3.63884201]
[1772448672735,3.73285088,83.789,83.738,3.83403423]
[1772448672941,3.63884201,83.77,83.73,474.04851521]
[1772448673141,3.73285088,83.769,83.73,474.04851521]
[1772448673544,3.73285088,83.769,83.725,3.83403423]
[1772448674245,14.72787638,83.833,83.67,43.55571405]
[1772448674246,3.89303352,83.759,83.682,3.65829634]
[1772448674445,3.89303352,83.759,83.71,7.29713835]
[1772448674744,3.89303352,83.759,83.711,3.65829634]
[1772448675139,3.89303352,83.759,83.712,10.751]
[1772448675339,3.89303352,83.739,83.69,3.63884201]
[1772448675545,3.89303352,83.729,83.684,3.65829634]
[1772448678245,3.6658758,83.719,83.672,10.756]
[1772448678448,3.6658758,83.719,83.672,3.93635006]
[1772448678851,3.6658758,83.699,83.66,3.63884201]
[1772448679151,3.6658758,83.727,83.681,3.93635006]
[1772448681850,3.6658758,83.719,83.652,3.93635006]
[1772448682055,3.6658758,83.719,83.661,3.93635006]
[1772448682249,3.6658758,83.719,83.67,3.63884201]
[1772448682752,3.6658758,83.719,83.67,7.57519207]
[1772448682953,3.6658758,83.719,83.671,3.93635006]
[1772448683553,10.748,83.735,83.691,3.93635006]
[1772448683754,3.6658758,83.729,83.676,3.93635006]
[1772448685355,3.6658758,83.719,83.661,3.93635006]
[1772448685754,3.6658758,83.716,83.661,3.93635006]
[1772448686556,3.6658758,83.714,83.671,3.93635006]
[1772448686861,3.63884201,83.73,83.681,3.93635006]
[1772448687453,3.6658758,83.728,83.681,3.93635006]
[1772448687856,3.63884201,83.74,83.691,3.93635006]
[1772448688057,3.6658758,83.739,83.691,3.93635006]
[1772448688256,3.6658758,83.739,83.7,3.63884201]
[1772448688455,3.6658758,83.739,83.7,7.57519207]
[1772448689261,10.747,83.748,83.701,3.93635006]
[1772448689461,3.6658758,83.752,83.711,3.93635006]
[1772448691457,3.6658758,83.752,83.7,3.65187681]
[1772448691458,10.744,83.768,83.721,3.93635006]
[1772448691858,10.744,83.768,83.73,3.65187681]
[1772448692065,3.6658758,83.77,83.731,3.93635006]
[1772448693268,10.743,83.777,83.731,3.93635006]
[1772448693562,3.6658758,83.784,83.74,7.58822687]
[1772448693768,3.6658758,83.799,83.751,3.93635006]
[1772448694666,3.6658758,83.779,83.73,3.65187681]
[1772448694868,10.744,83.769,83.721,3.93635006]
[1772448696670,3.65187681,83.77,83.721,3.93635006]
[1772448696863,10.743,83.779,83.741,3.93635006]
[1772448697369,10.743,83.779,83.653,22.04171405]
[1772448697370,3.65187681,83.83,83.77,3.65187681]
[1772448697672,5.11594348,83.829,83.77,3.65187681]
[1772448697872,5.03054584,83.819,83.77,3.65187681]
[1772448698066,5.03054584,83.817,83.77,3.65187681]
[1772448698669,5.03054584,83.815,83.77,3.65187681]
[1772448699667,5.03054584,83.815,83.75,10.746]
[1772448699872,5.03054584,83.815,83.77,3.65187681]
[1772448703775,4.95065207,83.799,83.75,3.65187681]
[1772448704278,10.741,83.797,83.75,3.65187681]
[1772448704481,4.95065207,83.796,83.729,10.749]
[1772448705277,4.95065207,83.793,83.729,10.749]
[1772448706377,10.741,83.79,83.729,10.749]
[1772448707779,10.741,83.79,83.737,10.748]
[1772448707974,10.74,83.799,83.74,9.77299178]
[1772448708179,4.98901879,83.808,83.74,9.77299178]
[1772448709280,15.72801879,83.808,83.754,10.746]
[1772448709974,4.98901879,83.808,83.74,9.77299178]
[1772448710182,4.98840895,83.821,83.764,10.745]
[1772448710381,4.98840895,83.821,83.74,9.77299178]
[1772448711280,15.72740895,83.809,83.753,10.746]
[1772448712572,4.98840895,83.809,83.76,10.745]
[1772448715882,4.98840895,83.809,83.767,10.744]
[1772448716284,4.98840895,83.809,83.718,21.502]
[1772448716285,4.98143028,83.822,83.76,9.77299178]
[1772448717485,4.98143028,83.822,83.783,10.742]
[1772448718091,4.98143028,83.822,83.76,9.77299178]
[1772448718682,4.98143028,83.822,83.773,10.744]
[1772448720189,4.98143028,83.822,83.78,10.743]
[1772448721192,4.98143028,83.822,83.772,10.744]
[1772448721690,4.98143028,83.822,83.769,10.744]
[1772448722788,4.97516251,83.81,83.751,10.746]
[1772448722994,4.97516251,83.81,83.725,21.5]
[1772448723981,4.95796397,83.807,83.758,10.745]
[1772448724184,4.95796397,83.807,83.725,21.5]
[1772448724590,4.95796397,83.799,83.74,3.64824156]
[1772448724786,4.95796397,83.799,83.742,10.747]
[1772448724987,4.95796397,83.799,83.75,3.64824156]
[1772448725892,4.95672887,83.789,83.74,3.64824156]
[1772448727786,4.95672887,83.779,83.725,10.75]
[1772448728087,21.473,83.832,83.725,10.75]
[1772448728088,4.95997413,83.769,83.725,10.75]
[1772448730191,4.93541343,83.785,83.75,3.64824156]
[1772448730392,4.93541343,83.799,83.75,3.64824156]
[1772448731994,4.95120068,83.789,83.744,10.747]
[1772448734194,3.64824156,83.78,83.744,10.747]
[1772448735201,3.64824156,83.78,83.751,10.746]
[1772448735398,4.95120068,83.789,83.751,10.746]
[1772448743116,4.95120068,83.789,83.743,10.747]
[1772448746919,4.94957977,83.787,83.743,10.747]
[1772448748216,4.94957977,83.787,83.743,21.77791522]
[1772448749317,4.94957977,83.787,83.75,10.746]
[1772448749512,9.77353052,83.81,83.72,9.77353052]
[1772448749513,4.94931008,83.802,83.756,11.03091522]
[1772448750213,4.94931008,83.802,83.756,21.77691522]
[1772448752015,4.96228222,83.8,83.751,11.03091522]
[1772448752212,4.96228222,83.8,83.747,10.747]
[1772448752722,4.96228222,83.798,83.747,10.747]
[1772448752921,2.07756853,83.823,83.749,11.03091522]
[1772448753222,4.96228222,83.822,83.765,11.03091522]
[1772448753423,4.96228222,83.822,83.766,11.03091522]
[1772448754017,4.96228222,83.822,83.781,10.742]
[1772448754224,4.9903224,83.849,83.779,11.03091522]
[1772448754419,4.9903224,83.849,83.78,11.03091522]
[1772448755315,9.77305409,83.85,83.76,9.77305409]
[1772448755316,4.9903224,83.847,83.785,11.03091522]
[1772448755920,4.9903224,83.847,83.79,11.03091522]